{"text_format":"1","workbook":"xlsx","n_sheets":3,"sheets":["REZ","DATA","Sheet3"],"not_rendered":{"charts":0,"images":0,"macros":1,"external_links":0,"defined_names":0,"comments":0,"pivot_tables":0},"unopened":[],"bounds":{"document_bytes":16777216,"sheet_cells":100000,"rows_first":2000,"rows_last":500,"rows_between":2000,"halvings":0,"cell_chars":16384,"cell_head_chars":4096},"cells_cut":0,"cells_raw":0,"read":"whole","date_system":"1900"}

{"sheet":"REZ","index":0,"n_rows":27,"n_cols":9,"rows_kept":27,"cut":false,"hidden":false,"merged":[]}
[]
[null,null,null,null,"Booking Hotels"]
[null,null,null,null,"Res. No.I"]
[]
[null,null,null,null,null,null,"Customer and Res. period"]
[null,"Res. No.",122512,null,null,null,"From dt."]
[null,"Customer'","xyz",null,null,null,"To dt."]
[null,"Status",null,null,null,null,"nights"]
[]
[]
[]
[null,"madinah"]
[null,null,null,null,null,null,null,"nights","Amount"]
[null,15,15,15,15,15,"1900-01-15",{"$f":"G14-F14","v":0},{"$f":"H14*D14","v":0}]
[null,15,15,15,15,15,"1900-01-15",{"$f":"G15-F15","v":0},{"$f":"H15*D15","v":0}]
[null,null,null,null,null,null,null,{"$f":"G16-F16","v":0},{"$f":"H16*D16","v":0}]
[null,null,null,null,null,null,null,0,0]
[null,null,null,null,null,null,null,0,0]
[null,null,null,null,null,null,null,null,{"$f":"SUM(I14:I18)","v":0}]
[null,"makkah"]
[null,null,null,null,null,null,null,"nights","Amount"]
[null,35,35,35,35,"1900-02-04","1900-02-04",{"$f":"G22-F22","v":0},{"$f":"H22*D22","v":0}]
[null,35,35,35,35,"1900-02-04","1900-02-04",{"$f":"G23-F23","v":0},{"$f":"H23*D23","v":0}]
[null,35,35,35,35,35,35,{"$f":"G24-F24","v":0},{"$f":"H24*D24","v":0}]
[null,null,null,null,null,null,null,0,0]
[null,null,null,null,null,null,null,0,0]
[null,null,null,null,null,null,null,null,{"$f":"SUM(I22:I26)","v":0}]

{"sheet":"DATA","index":1,"n_rows":10,"n_cols":11,"rows_kept":10,"cut":false,"hidden":false,"merged":[]}
[]
[]
[]
[]
[]
[null,"Res. No.","Customer'","hotel name","Room type","price","Persone","from Dt","To date","nights","Amount"]
[null,"ff","weff",null,null,null,null,null,null,"nights","Amount"]
[null,null,null,20,20,20,20,"1900-01-20","1900-01-20",0,0]
[null,null,null,"hotel name","Room type","price","Persone","from Dt","To date","nights","Amount"]
[null,null,null,11,11,11,11,"1900-01-11","1900-01-11",0,0]

{"sheet":"Sheet3","index":2,"n_rows":0,"n_cols":0,"rows_kept":0,"cut":false,"hidden":false,"merged":[]}